bitfinex/quotes_BTCUSD_20250602
["timestamp","ask_amount","ask_price","bid_price","bid_amount"]
[1748827971448,0.03041039,105430.0,105420.0,0.38851897]
[1748827971674,0.03041039,105430.0,105420.0,0.39740132]
[1748827972628,0.03041039,105430.0,105420.0,0.39740126]
[1748827973487,0.03041039,105430.0,105420.0,0.38851897]
[1748827973688,0.03041039,105430.0,105420.0,0.39740126]
[1748827973896,0.03041039,105430.0,105420.0,0.39740127]
[1748827974977,0.03041039,105430.0,105420.0,0.39740144]
[1748827975383,0.03041039,105430.0,105420.0,0.37211897]
[1748827975602,0.03041039,105430.0,105420.0,0.38100144]
[1748827976022,0.03041039,105430.0,105420.0,0.36460144]
[1748827976254,0.03041039,105430.0,105420.0,0.36460145]
[1748827976932,0.03041039,105430.0,105420.0,0.36460161]
[1748827977147,0.03041039,105430.0,105420.0,0.38020161]
[1748827977762,0.03041039,105430.0,105420.0,0.36251008]
[1748827978265,0.03041039,105430.0,105420.0,0.35362744]
[1748827978494,0.03041039,105430.0,105420.0,0.36251008]
[1748827978927,0.03041039,105430.0,105420.0,0.36250993]
[1748827979388,0.03041039,105430.0,105420.0,0.37870994]
[1748827979595,0.03041039,105430.0,105420.0,0.37871025]
[1748827980843,0.03041039,105430.0,105420.0,0.36251025]
[1748827981057,0.03041039,105430.0,105420.0,0.25105582]
[1748827981276,0.28116288,105430.0,105420.0,0.24157074]
[1748827981487,0.66066031,105430.0,105420.0,0.02923628]
[1748827981699,0.66066031,105430.0,105420.0,0.24741046]
[1748827981700,0.43146473,105430.0,105420.0,0.24741046]
[1748827981916,0.43146473,105430.0,105420.0,0.24741094]
[1748827982129,0.43146473,105430.0,105420.0,0.24741064]
[1748827982337,0.42197977,105430.0,105420.0,0.25689596]
[1748827982543,0.03041039,105430.0,105420.0,0.26638119]
[1748827983023,0.03041039,105430.0,105420.0,0.26637962]
[1748827983249,0.03041039,105430.0,105420.0,0.26334505]
[1748827983481,0.03041039,105430.0,105420.0,0.26637965]
[1748827983706,0.03041039,105430.0,105420.0,0.28257967]
[1748827983929,0.03041039,105430.0,105420.0,0.28257966]
[1748827984325,0.03041039,105430.0,105420.0,0.28258207]
[1748827984497,0.03041039,105430.0,105420.0,0.30192795]
[1748827985370,0.03041039,105430.0,105420.0,0.3019295]
[1748827985823,0.03041039,105430.0,105420.0,0.3019296]
[1748827986256,0.03041039,105430.0,105420.0,0.28622966]
[1748827986707,0.03989472,105430.0,105420.0,0.27002976]
[1748827986930,0.08127932,105430.0,105420.0,0.26638255]
[1748827987160,0.08127932,105430.0,105420.0,0.26638301]
[1748827987381,0.0907641,105430.0,105420.0,0.26638303]
[1748827987591,0.07179472,105430.0,105420.0,0.26638303]
[1748827987800,0.08127923,105430.0,105420.0,0.26638164]
[1748827988229,0.09076401,105430.0,105420.0,0.26638164]
[1748827988458,0.09076401,105430.0,105420.0,0.26638197]
[1748827988667,0.09076401,105430.0,105420.0,0.26638195]
[1748827988876,0.09076401,105430.0,105420.0,0.26638083]
[1748827989792,0.09076401,105430.0,105420.0,0.26637992]
[1748827990008,0.09076401,105430.0,105420.0,0.2663798]
[1748827990233,0.09076392,105430.0,105420.0,0.2663798]
[1748827990454,0.09076392,105430.0,105420.0,0.25749809]
[1748827990899,0.09076392,105430.0,105420.0,0.26637914]
[1748827991128,0.1002487,105430.0,105420.0,0.26637914]
[1748827991350,0.28994865,105430.0,105420.0,0.24740841]
[1748827991575,0.10024933,105430.0,105420.0,0.25689382]
[1748827991794,0.10024933,105430.0,105420.0,0.26637914]
[1748827992017,0.10024933,105430.0,105420.0,0.2663786]
[1748827992018,0.09076437,105430.0,105420.0,0.2663786]
[1748827992244,0.10024807,105430.0,105420.0,0.26637777]
[1748827992482,0.10024807,105430.0,105420.0,0.26334315]
[1748827992701,0.08127878,105430.0,105420.0,0.26637797]
[1748827992930,0.10024798,105430.0,105420.0,0.26637797]
[1748827993147,0.10024798,105430.0,105420.0,0.26637743]
[1748827993618,0.10973276,105430.0,105420.0,0.26637743]
[1748827993827,0.10973276,105430.0,105420.0,0.26637757]
[1748827994234,0.10973276,105430.0,105420.0,0.25749775]
[1748827994440,0.10973276,105430.0,105420.0,0.26637737]
[1748827994656,0.10024798,105430.0,105420.0,0.26637737]
[1748827994874,0.09076329,105430.0,105420.0,0.26637737]
[1748827995083,0.10024798,105430.0,105420.0,0.26637735]
[1748827995290,0.10024798,105430.0,105420.0,0.26637733]
[1748827995492,0.08127878,105430.0,105420.0,0.26637733]
[1748827995700,0.0907632,105430.0,105420.0,0.26637733]
[1748827995910,0.10024771,105430.0,105420.0,0.26637734]
[1748827996122,0.1097324,105430.0,105420.0,0.26637734]
[1748827996364,0.10973312,105430.0,105420.0,0.26637734]
[1748827996574,0.10024825,105430.0,105420.0,0.26637716]
[1748827996805,0.10024825,105430.0,105420.0,0.26637715]
[1748827997041,0.09076356,105430.0,105420.0,0.25749778]
[1748827997308,0.09076356,105430.0,105420.0,0.26637714]
[1748827997309,0.10024825,105430.0,105420.0,0.26637714]
[1748827997512,0.10024825,105430.0,105420.0,0.25749778]
[1748827997785,0.10024825,105430.0,105420.0,0.26637698]
[1748827998193,0.09076356,105430.0,105420.0,0.26637698]
[1748827998475,0.10024825,105430.0,105420.0,0.26637698]
[1748827998692,0.10024825,105430.0,105420.0,0.26637694]
[1748827998931,0.03989454,105430.0,105420.0,0.26637694]
[1748827999144,0.05886329,105430.0,105420.0,0.26637694]
[1748827999805,0.05886329,105430.0,105420.0,0.25749778]
[1748828000018,0.05886329,105430.0,105420.0,0.26637688]
[1748828000238,0.05886329,105430.0,105420.0,0.25749778]
[1748828000456,0.05886329,105430.0,105420.0,0.26637696]
[1748828000678,0.05886329,105430.0,105420.0,0.25749778]
[1748828000925,0.05886329,105430.0,105420.0,0.26637722]
[1748828001657,0.06834771,105430.0,105420.0,0.26637722]
[1748828001882,0.06834762,105430.0,105420.0,0.2663775]
[1748828002287,0.06834762,105430.0,105420.0,0.26637735]
[1748828003061,0.06834762,105430.0,105420.0,0.25749778]
[1748828003240,0.06834762,105430.0,105420.0,0.26637765]
[1748828003469,0.06834762,105430.0,105420.0,0.26637783]
[1748828003650,0.06834762,105430.0,105420.0,0.25749778]
[1748828003843,0.06834762,105430.0,105420.0,0.26637783]
[1748828004306,0.03041039,105430.0,105420.0,0.26637816]
[1748828004512,0.03041039,105430.0,105420.0,0.28237816]
[1748828004733,0.03989472,105430.0,105420.0,0.28237816]
[1748828005120,0.04937932,105430.0,105420.0,0.26637838]
[1748828005338,0.04937923,105430.0,105420.0,0.26637838]
[1748828005467,0.04937923,105430.0,105420.0,0.26637829]
[1748828005881,0.04937923,105430.0,105420.0,0.26637881]
[1748828006298,0.04937923,105430.0,105420.0,0.26637882]
[1748828006494,0.04937923,105430.0,105420.0,0.26637924]
[1748828006741,0.06837061,105430.0,105420.0,0.26637922]
[1748828006912,0.10037061,105430.0,105420.0,0.26637922]
[1748828007258,0.10985539,105430.0,105420.0,0.26637922]
[1748828007617,0.1098553,105430.0,105420.0,0.26637922]
[1748828007811,0.1098553,105430.0,105420.0,0.24861106]
[1748828008002,0.10985539,105430.0,105420.0,0.25749329]
[1748828008404,0.10985539,105430.0,105420.0,0.25749348]
[1748828008669,0.10985539,105430.0,105420.0,0.24861106]
[1748828008826,0.10985539,105430.0,105420.0,0.25749348]
[1748828009810,0.10985539,105430.0,105420.0,0.25749522]
[1748828010042,0.10985539,105430.0,105420.0,0.25749526]
[1748828010245,0.10985539,105430.0,105420.0,0.24861106]
[1748828011036,0.11934026,105430.0,105420.0,0.25749525]
[1748828011243,0.11934026,105430.0,105420.0,0.24861106]
[1748828012020,0.11934026,105430.0,105420.0,0.25749639]
[1748828012233,0.10985539,105430.0,105420.0,0.24861106]
[1748828012432,0.10037061,105430.0,105420.0,0.25749639]
[1748828012633,0.03991717,105430.0,105420.0,0.2574964]
[1748828012813,0.02542732,105430.0,105420.0,0.28919646]
[1748828013029,0.04945241,105430.0,105420.0,0.28919646]
[1748828013391,0.04945241,105430.0,105420.0,0.25749646]
[1748828013613,0.04945241,105430.0,105420.0,0.25749684]
[1748828013823,0.03996817,105430.0,105420.0,0.25749684]
[1748828014026,0.03996817,105430.0,105420.0,0.25749667]
[1748828014292,0.03996817,105430.0,105420.0,0.25749661]
[1748828014463,0.03996817,105430.0,105420.0,0.24861101]
[1748828014673,0.03996817,105430.0,105420.0,0.2574971]
[1748828015092,0.03996817,105430.0,105420.0,0.24861101]
[1748828015288,0.03996817,105430.0,105420.0,0.2574971]
[1748828015637,0.04945241,105430.0,105420.0,0.24861101]
[1748828015844,0.05893683,105430.0,105420.0,0.24861101]
[1748828016044,0.04945241,105430.0,105420.0,0.25749831]
[1748828016924,0.05893683,105430.0,105420.0,0.25749831]
[1748828017532,0.05893683,105430.0,105420.0,0.25749816]
[1748828017941,0.10930612,105430.0,105420.0,0.25749816]
[1748828018335,0.10930612,105430.0,105420.0,0.25749844]
[1748828018536,0.10930612,105430.0,105420.0,0.25749851]
[1748828018732,0.10930612,105430.0,105420.0,0.25749859]
[1748828019411,0.10930612,105430.0,105420.0,0.25749867]
[1748828020018,0.10930612,105430.0,105420.0,0.25749862]
[1748828020193,0.10930612,105430.0,105420.0,0.24861108]
[1748828020428,0.10930603,105430.0,105420.0,0.24861108]
[1748828020635,0.11879081,105430.0,105420.0,0.25749868]
[1748828021267,0.11879081,105430.0,105420.0,0.25749869]
[1748828021455,0.11879081,105430.0,105420.0,0.25749883]
[1748828022512,0.11879081,105430.0,105420.0,0.25749892]
[1748828022929,0.11879081,105430.0,105420.0,0.25446414]
[1748828023148,0.11879081,105430.0,105420.0,0.24861104]
[1748828023335,0.10930603,105430.0,105420.0,0.25749888]
[1748828023787,0.10930603,105430.0,105420.0,0.25749908]
[1748828024419,0.10930603,105430.0,105420.0,0.25749912]
[1748828024639,0.09982152,105430.0,105420.0,0.25749912]
[1748828024850,0.09982143,105430.0,105420.0,0.25749912]
[1748828025075,0.09033683,105430.0,105420.0,0.25749912]
[1748828025283,0.05893683,105430.0,105420.0,0.25749912]
[1748828025689,0.05893683,105430.0,105420.0,0.2574991]
[1748828026230,0.06842152,105430.0,105420.0,0.25749898]
[1748828026955,0.06842152,105430.0,105420.0,0.25749925]
[1748828027164,0.05893683,105430.0,105420.0,0.25749925]
[1748828027366,0.05893683,105430.0,105420.0,0.25749924]
[1748828027575,0.05893683,105430.0,105420.0,0.25749957]
[1748828027854,0.06842143,105430.0,105420.0,0.25749955]
[1748828028058,0.03996817,105430.0,105420.0,0.25749955]
[1748828028257,0.04945232,105430.0,105420.0,0.27961104]
[1748828028463,0.04945232,105430.0,105420.0,0.28849992]
[1748828029589,0.04945232,105430.0,105420.0,0.28849981]
[1748828029795,0.03996817,105430.0,105420.0,0.28849981]
[1748828029934,0.04945232,105430.0,105420.0,0.28849981]
[1748828031192,0.04945232,105430.0,105420.0,0.28849973]
[1748828031674,0.03996817,105430.0,105420.0,0.28546499]
[1748828031888,0.03996817,105430.0,105420.0,0.28849964]
[1748828032091,0.04945232,105430.0,105420.0,0.28849964]
[1748828032295,0.04945232,105430.0,105420.0,0.27349964]
[1748828032511,0.04945232,105430.0,105420.0,0.25749964]
[1748828032966,0.04945232,105430.0,105420.0,0.25749959]
[1748828033617,0.04945232,105430.0,105420.0,0.25749952]
[1748828034096,0.04945232,105430.0,105420.0,0.28909952]
[1748828034543,0.04945232,105430.0,105420.0,0.2890996]
[1748828035203,0.03996817,105430.0,105420.0,0.2890996]
[1748828035461,0.04945232,105430.0,105420.0,0.2890996]
[1748828035680,0.05893665,105430.0,105420.0,0.2735996]
[1748828035922,0.04945232,105430.0,105420.0,0.2735996]
[1748828036142,0.05893665,105430.0,105420.0,0.27359956]
[1748828036362,0.04945232,105430.0,105420.0,0.27359956]
[1748828037078,0.04945232,105430.0,105420.0,0.27359954]
[1748828037322,0.04945232,105430.0,105420.0,0.26471101]
[1748828037530,0.03996817,105430.0,105420.0,0.27359954]
[1748828038042,0.04945241,105430.0,105420.0,0.27056483]
[1748828038279,0.03996817,105430.0,105420.0,0.27359954]
[1748828038499,0.03996817,105430.0,105420.0,0.27359952]
[1748828038721,0.04945241,105430.0,105420.0,0.27359952]
[1748828039603,0.04945241,105430.0,105420.0,0.25749955]
[1748828040030,0.04945241,105430.0,105420.0,0.24861101]
[1748828040243,0.04945241,105430.0,105420.0,0.25749955]
[1748828040488,0.04945241,105430.0,105420.0,0.24861101]
[1748828040699,0.04945241,105430.0,105420.0,0.25749954]
[1748828041312,0.05893683,105430.0,105420.0,0.25749954]
[1748828041523,0.04945241,105430.0,105420.0,0.25749954]
[1748828041765,0.04945241,105430.0,105420.0,0.24861101]
[1748828041969,0.04945241,105430.0,105420.0,0.25749954]
[1748828042389,0.04945241,105430.0,105420.0,0.24861101]
[1748828042591,0.04945241,105430.0,105420.0,0.25749954]
[1748828043018,0.04945241,105430.0,105420.0,0.25749973]
[1748828044365,0.05893683,105430.0,105420.0,0.25749973]
[1748828044633,0.05893683,105430.0,105420.0,0.25749972]
[1748828045252,0.04945241,105430.0,105420.0,0.25749977]
[1748828045462,0.04945241,105430.0,105420.0,0.24861101]
[1748828045675,0.05893674,105430.0,105420.0,0.25749973]
[1748828045889,0.03996817,105430.0,105420.0,0.25749973]
[1748828046338,0.04945241,105430.0,105420.0,0.25749973]
[1748828046581,0.04945241,105430.0,105420.0,0.25749978]
[1748828047054,0.05893683,105430.0,105420.0,0.25749978]
[1748828047270,0.712648,105430.0,105420.0,0.02035523]
[1748828047534,0.62013678,105430.0,105420.0,0.21955841]
[1748828047793,0.61065227,105430.0,105420.0,0.21955624]
[1748828048090,0.41146817,105430.0,105420.0,0.24801215]
[1748828048259,0.38945232,105430.0,105420.0,0.248012]
[1748828048463,0.78385674,105430.0,105420.0,0.26341171]
[1748828048673,0.78385665,105430.0,105420.0,0.26341167]
[1748828049093,0.79334125,105430.0,105420.0,0.26341167]
[1748828049301,0.79334116,105430.0,105420.0,0.26341152]
[1748828049510,0.79334116,105430.0,105420.0,0.26341143]
[1748828049924,0.78385665,105430.0,105420.0,0.26341143]
[1748828050141,0.37996817,105430.0,105420.0,0.27871143]
[1748828050349,0.48053232,105430.0,105420.0,0.27871143]
[1748828050555,0.49001665,105430.0,105420.0,0.26982629]
[1748828050792,0.48053232,105430.0,105420.0,0.27871109]
[1748828050982,0.49001665,105430.0,105420.0,0.27871108]
[1748828051116,0.49001665,105430.0,105420.0,0.26982629]
[1748828051320,0.38945232,105430.0,105420.0,0.27871108]
[1748828051527,0.77437232,105430.0,105420.0,0.27871108]
[1748828051716,0.78385665,105430.0,105420.0,0.27871108]
[1748828051909,0.78385665,105430.0,105420.0,0.26982629]
[1748828052113,0.04945232,105430.0,105420.0,0.27871118]
[1748828052312,0.03996817,105430.0,105420.0,0.27871118]
[1748828052518,0.03996817,105430.0,105420.0,0.26982629]
[1748828052761,0.03996817,105430.0,105420.0,0.27871094]
[1748828053173,0.03996817,105430.0,105420.0,0.26982629]
[1748828053345,0.03996817,105430.0,105420.0,0.27871102]
[1748828053543,0.03996817,105430.0,105420.0,0.2787109]
[1748828053847,0.04945232,105430.0,105420.0,0.2787109]
[1748828054223,0.03996817,105430.0,105420.0,0.2787109]
[1748828054857,0.03996817,105430.0,105420.0,0.26982629]
[1748828055067,0.03996817,105430.0,105420.0,0.2787109]
[1748828055695,0.03996817,105430.0,105420.0,0.27871076]
[1748828056313,0.03996817,105430.0,105420.0,0.26982629]
[1748828056492,0.03996817,105430.0,105420.0,0.27871089]
[1748828056985,0.03996817,105430.0,105420.0,0.27871065]
[1748828057705,0.03996817,105430.0,105420.0,0.26982605]
[1748828057918,0.03996817,105430.0,105420.0,0.27871064]
[1748828058356,0.03996817,105430.0,105420.0,0.27871051]
[1748828058761,0.03996817,105430.0,105420.0,0.26982605]
[1748828058975,0.03996817,105430.0,105420.0,0.27871051]
[1748828059182,0.03996817,105430.0,105420.0,0.26982605]
[1748828059464,0.03996817,105430.0,105420.0,0.27871038]
[1748828060536,0.04945241,105430.0,105420.0,0.27871038]
[1748828060765,0.04945241,105430.0,105420.0,0.27871028]
[1748828061180,0.04945241,105430.0,105420.0,0.27871026]
[1748828061393,0.04945241,105430.0,105420.0,0.27871013]
[1748828062382,0.04945241,105430.0,105420.0,0.27871022]
[1748828063099,0.03994563,105430.0,105420.0,0.27871022]
[1748828063326,0.03994554,105430.0,105420.0,0.27871031]
[1748828063531,0.03994554,105430.0,105420.0,0.26982603]
[1748828063746,0.03994554,105430.0,105420.0,0.27871015]
[1748828064648,0.03994554,105430.0,105420.0,0.27871006]
[1748828065273,0.04942987,105430.0,105420.0,0.27871006]
[1748828065485,0.04942987,105430.0,105420.0,0.27870991]
[1748828065690,0.04942987,105430.0,105420.0,0.2787099]
[1748828066143,0.04942987,105430.0,105420.0,0.27870997]
[1748828066345,0.04942987,105430.0,105420.0,0.26340997]
[1748828067054,0.04942987,105430.0,105420.0,0.26340982]
[1748828067517,0.04942978,105430.0,105420.0,0.26340982]
[1748828067728,0.03994563,105430.0,105420.0,0.28000982]
[1748828067935,0.03994554,105430.0,105420.0,0.28000982]
[1748828068138,0.04942987,105430.0,105420.0,0.28000982]
[1748828068838,0.04942987,105430.0,105420.0,0.28000974]
[1748828069611,0.03994554,105430.0,105420.0,0.28000966]
[1748828070080,0.04942987,105430.0,105420.0,0.28000975]
[1748828070288,0.03994554,105430.0,105420.0,0.28000975]
[1748828070497,0.04942987,105430.0,105420.0,0.28000974]
[1748828070700,0.04942978,105430.0,105420.0,0.28000974]
[1748828070913,0.03994554,105430.0,105420.0,0.26340974]
[1748828071125,0.04942987,105430.0,105420.0,0.26340974]
[1748828071327,0.03994554,105430.0,105420.0,0.26340983]
[1748828071533,0.03994554,105430.0,105420.0,0.26962602]
[1748828072149,0.03994554,105430.0,105420.0,0.27850983]
[1748828072784,0.03994554,105430.0,105420.0,0.27850992]
[1748828073021,0.03994554,105430.0,105420.0,0.26962602]
[1748828073667,0.03994554,105430.0,105420.0,0.26340977]
[1748828074068,0.04942978,105430.0,105420.0,0.26340977]
[1748828074239,0.04942978,105430.0,105420.0,0.24800977]
[1748828074657,0.04942978,105430.0,105420.0,0.23912602]
[1748828074879,0.03046139,105430.0,105420.0,0.27072602]
[1748828075206,0.03994554,105430.0,105420.0,0.27960955]
[1748828076202,0.04942978,105430.0,105420.0,0.27072602]
[1748828076647,0.03046139,105430.0,105420.0,0.27960948]
[1748828077519,0.03046139,105430.0,105420.0,0.27960942]
[1748828077903,0.03046139,105430.0,105420.0,0.27961237]
[1748828078323,0.03046139,105430.0,105420.0,0.27657769]
[1748828078537,0.03046139,105430.0,105420.0,0.27961237]
[1748828079327,0.03046139,105430.0,105420.0,0.27072602]
[1748828079509,0.03046139,105430.0,105420.0,0.27961318]
[1748828079944,0.03046139,105430.0,105420.0,0.27961429]
[1748828080312,0.03046139,105430.0,105420.0,0.28326307]
[1748828081068,0.03046139,105430.0,105420.0,0.28326286]
[1748828081289,0.03046139,105430.0,105420.0,0.2743748]
[1748828081676,0.03046139,105430.0,105420.0,0.28326364]
[1748828082050,0.03046139,105430.0,105420.0,0.2743748]
[1748828082455,0.03046139,105430.0,105420.0,0.28326364]
[1748828082870,0.03046139,105430.0,105420.0,0.28326353]
[1748828083080,0.03046139,105430.0,105420.0,0.28326417]
[1748828084057,0.03046139,105430.0,105420.0,0.27437544]
[1748828084278,0.03046139,105430.0,105420.0,0.28326417]
[1748828085108,0.03046139,105430.0,105420.0,0.27437544]
[1748828085315,0.03046139,105430.0,105420.0,0.28326414]
[1748828085678,0.03046139,105430.0,105420.0,0.37911844]
[1748828086510,0.03046139,105430.0,105420.0,0.37911847]
[1748828086728,0.03046139,105430.0,105420.0,0.37022974]
[1748828087192,0.03046139,105430.0,105420.0,0.3791184]
[1748828087582,0.03046139,105430.0,105420.0,0.37911839]
[1748828087960,0.03046139,105430.0,105420.0,0.37022973]
[1748828088160,0.03046139,105430.0,105420.0,0.37911858]
[1748828089881,0.03046139,105430.0,105420.0,0.37911852]
[1748828090296,0.03046139,105430.0,105420.0,0.37022973]
[1748828090498,0.03046139,105430.0,105420.0,0.37911855]
[1748828090915,0.03046139,105430.0,105420.0,0.37911863]
[1748828091599,0.03046139,105430.0,105420.0,0.37911859]
[1748828092102,0.03046139,105430.0,105420.0,0.37022981]
[1748828092515,0.03046139,105430.0,105420.0,0.3791186]
[1748828093123,0.03046139,105430.0,105420.0,0.37911855]
[1748828093329,0.03046139,105430.0,105420.0,0.37022981]
[1748828093527,0.03046139,105430.0,105420.0,0.37911855]
[1748828093674,0.03046139,105430.0,105420.0,0.37911854]
[1748828093879,0.03046139,105430.0,105420.0,0.37022981]
[1748828094082,0.03046139,105430.0,105420.0,0.37911855]
[1748828094534,0.03046139,105430.0,105420.0,0.37911853]
[1748828094731,0.03046139,105430.0,105420.0,0.37911845]
[1748828096230,0.03046139,105430.0,105420.0,0.37243428]
[1748828096434,0.03046139,105430.0,105420.0,0.37911839]
[1748828096966,0.03046139,105430.0,105420.0,0.37022975]
[1748828097166,0.03046139,105430.0,105420.0,0.37911834]
[1748828097636,0.03046139,105430.0,105420.0,0.37022975]
[1748828097845,0.03046139,105430.0,105420.0,0.37911834]
[1748828098279,0.03046139,105430.0,105420.0,0.37911832]
[1748828100015,0.03046139,105430.0,105420.0,0.37911836]
[1748828100848,0.03046139,105430.0,105420.0,0.37911837]
[1748828101549,0.03046139,105430.0,105420.0,0.37911839]
[1748828101765,0.03046139,105430.0,105420.0,0.37022978]
[1748828101974,0.03046139,105430.0,105420.0,0.37911839]
[1748828102194,0.03046139,105430.0,105420.0,0.37022978]
[1748828102400,0.03046139,105430.0,105420.0,0.37911839]
[1748828102616,0.03046139,105430.0,105420.0,0.37022978]
[1748828102834,0.03046139,105430.0,105420.0,0.6957738]
[1748828103037,0.03046139,105430.0,105420.0,0.37911842]
[1748828104129,0.03046139,105430.0,105420.0,0.37022978]
[1748828104329,0.03046139,105430.0,105420.0,0.37911615]
[1748828104734,0.03046139,105430.0,105420.0,0.3791152]
[1748828105059,0.03046139,105430.0,105420.0,0.37022978]
[1748828105303,0.03046139,105430.0,105420.0,0.3791152]
[1748828105533,0.03046139,105430.0,105420.0,0.37911522]
[1748828105989,0.03046139,105430.0,105420.0,0.37022978]
[1748828106191,0.03046139,105430.0,105420.0,0.37911522]
[1748828107517,0.03046139,105430.0,105420.0,0.37911461]
[1748828108040,0.03046139,105430.0,105420.0,0.37911415]
[1748828108262,0.03046139,105430.0,105420.0,0.37022811]
[1748828110519,0.03046139,105430.0,105420.0,0.37911246]
[1748828110729,0.03046139,105430.0,105420.0,0.37022811]
[1748828111146,0.03046139,105430.0,105420.0,0.37911246]
[1748828111353,0.03046139,105430.0,105420.0,0.37022811]
[1748828111579,0.03046139,105430.0,105420.0,1.00353887]
[1748828111791,0.03046139,105430.0,105420.0,1.00840571]
[1748828111792,0.011,105430.0,105420.0,1.00840571]
[1748828112013,0.011,105430.0,105420.0,1.00475774]
[1748828112747,0.01,105430.0,105420.0,1.00475774]
[1748828113175,0.01,105430.0,105420.0,1.00975774]
[1748828113381,0.01,105430.0,105420.0,1.66154628]
[1748828113601,0.01,105430.0,105420.0,1.72526619]
[1748828113811,0.01,105430.0,105420.0,2.20382388]
[1748828114035,0.01,105430.0,105420.0,2.20382286]
[1748828114945,0.01,105430.0,105420.0,2.20182286]
[1748828115476,0.01,105430.0,105420.0,2.19882286]
[1748828115693,0.01,105430.0,105420.0,2.20282286]
[1748828116342,0.01,105430.0,105420.0,2.20582286]
[1748828116795,0.01,105430.0,105420.0,2.20282286]
[1748828116997,0.00977346,105430.0,105420.0,2.20282286]
[1748828117203,0.00977346,105430.0,105420.0,1.88816748]
[1748828117410,0.00977346,105430.0,105420.0,1.87784532]
[1748828119213,0.00977346,105430.0,105420.0,2.19420822]
[1748828119412,0.00908311,105430.0,105420.0,1.88758252]
[1748828119622,0.00908311,105430.0,105420.0,1.88783813]
[1748828119931,0.00908311,105430.0,105420.0,1.88758252]
[1748828120185,0.09078579,105470.0,105460.0,0.53445396]
[1748828120405,0.09078579,105470.0,105460.0,0.63334174]
[1748828121155,0.07624494,105470.0,105460.0,0.64984174]
[1748828121327,0.07624494,105470.0,105460.0,0.66499006]
[1748828121963,0.07924494,105470.0,105460.0,0.66499006]
[1748828122169,0.003,105470.0,105460.0,0.66499006]
[1748828122415,0.006,105470.0,105460.0,0.66499006]
[1748828123199,0.006,105470.0,105460.0,0.92715006]
[1748828124780,0.006,105470.0,105460.0,0.61078716]
[1748828124982,0.006,105470.0,105460.0,0.61074716]
[1748828125184,0.03604085,105470.0,105460.0,0.61074716]
[1748828125344,0.05104085,105470.0,105460.0,0.31702716]
[1748828125560,0.05104085,105470.0,105460.0,0.31399385]
[1748828126183,0.07948358,105470.0,105460.0,0.21813955]
[1748828126392,0.07948349,105470.0,105460.0,0.21813955]
[1748828129142,0.0700024,105470.0,105460.0,0.21813955]
[1748828130699,0.07948349,105470.0,105460.0,0.21813955]
[1748828131292,0.0700024,105470.0,105460.0,0.21813955]
[1748828133088,0.36015159,105470.0,105460.0,0.19917611]
[1748828133295,0.36015159,105470.0,105460.0,0.20865828]
[1748828133499,0.36015159,105470.0,105460.0,4.849e-05]
[1748828133500,0.69067068,105470.0,105460.0,4.849e-05]
[1748828133698,0.78652498,105470.0,105460.0,4.849e-05]
[1748828135534,1.08024498,105470.0,105460.0,4.849e-05]
[1748828139580,5.05916798,105470.0,105460.0,4.849e-05]
[1748828139786,5.06916798,105470.0,105460.0,4.849e-05]
[1748828143677,4.67440798,105470.0,105460.0,4.849e-05]
[1748828143881,5.05936798,105470.0,105460.0,4.849e-05]
[1748828144084,5.05932798,105470.0,105460.0,4.849e-05]
[1748828144652,1.18158413,105470.0,105460.0,4.849e-05]
[1748828144903,1.47542413,105470.0,105460.0,4.849e-05]
[1748828147299,1.48996498,105470.0,105460.0,4.849e-05]
[1748828149552,1.19612498,105470.0,105460.0,4.849e-05]
[1748828149761,1.48996498,105470.0,105460.0,4.849e-05]
[1748828154257,5.05928798,105470.0,105460.0,4.849e-05]
[1748828154657,5.08776398,105470.0,105460.0,4.849e-05]
[1748828154858,5.1802752,105470.0,105460.0,4.849e-05]
[1748828155062,5.08776398,105470.0,105460.0,4.849e-05]
[1748828155487,0.04299168,105440.0,105430.0,0.22763619]
[1748828155713,0.04299168,105440.0,105430.0,0.21863679]
[1748828156345,0.04299168,105440.0,105430.0,0.22748507]
[1748828156595,0.04299168,105440.0,105430.0,0.22163679]
[1748828156790,0.04299168,105440.0,105430.0,0.22263679]
[1748828157214,0.04299168,105440.0,105430.0,0.23148507]
[1748828157422,0.04299168,105440.0,105430.0,0.23351955]
[1748828157625,0.04299168,105440.0,105430.0,0.22467127]
[1748828158262,0.04299168,105440.0,105430.0,0.23051955]
[1748828158475,0.04299168,105440.0,105430.0,0.23677127]
[1748828158677,0.04299168,105440.0,105430.0,0.24761955]
[1748828158882,0.06165742,105440.0,105430.0,0.23877127]
[1748828159741,0.06165742,105440.0,105430.0,0.24761955]
[1748828160137,0.06165742,105440.0,105430.0,0.2476209]
[1748828160377,0.06165742,105440.0,105430.0,0.23877127]
[1748828160596,0.06165733,105440.0,105430.0,0.25507127]
[1748828160871,0.07114121,105440.0,105430.0,0.25443666]
[1748828161094,0.08062527,105440.0,105430.0,0.25443666]
[1748828161315,0.07114121,105440.0,105430.0,0.25443666]
[1748828161730,0.08062518,105440.0,105430.0,0.24558703]
[1748828161922,0.08062518,105440.0,105430.0,0.25244768]
[1748828162679,0.07114121,105440.0,105430.0,0.25244768]
[1748828162897,0.07314121,105440.0,105430.0,0.24358703]
[1748828163773,0.07314121,105440.0,105430.0,0.25247267]
[1748828164011,0.07314121,105440.0,105430.0,0.24358703]
[1748828164217,0.07314121,105440.0,105430.0,0.25247267]
[1748828164439,0.07314121,105440.0,105430.0,0.23410306]
[1748828164663,0.07314121,105440.0,105430.0,0.25307217]
[1748828164901,0.26282263,105440.0,105430.0,0.24358766]
[1748828165118,0.25333929,105440.0,105430.0,0.25247336]
[1748828165334,0.25333929,105440.0,105430.0,0.2429889]
[1748828165554,0.25333929,105440.0,105430.0,0.23410306]
[1748828165774,0.25333929,105440.0,105430.0,0.00351923]
[1748828165775,0.23437189,105440.0,105430.0,0.00351923]
[1748828166017,0.23437189,105440.0,105430.0,0.00048475]
[1748828166248,0.23437189,105440.0,105430.0,0.00996971]
[1748828166462,0.23437189,105440.0,105430.0,0.21218845]
[1748828167127,0.23437189,105440.0,105430.0,0.01300426]
[1748828167356,0.23437189,105440.0,105430.0,0.20270358]
[1748828167583,0.23437189,105440.0,105430.0,0.21218845]
[1748828167992,0.23437189,105440.0,105430.0,0.02189007]
[1748828168205,0.23437189,105440.0,105430.0,0.03137494]
[1748828168418,0.26467189,105440.0,105430.0,0.0035193]
[1748828168600,0.26467189,105440.0,105430.0,0.00048475]
[1748828169075,0.03520659,105440.0,105430.0,0.22108407]
[1748828169293,0.03520659,105440.0,105430.0,0.25257242]
[1748828169530,0.06365706,105440.0,105430.0,0.25257237]
[1748828169754,0.26282308,105440.0,105430.0,0.24308822]
[1748828169938,0.26282308,105440.0,105430.0,0.23727273]
[1748828170184,0.26282308,105440.0,105430.0,0.25257291]
[1748828170864,0.26282308,105440.0,105430.0,0.26205751]
[1748828171700,0.34437956,105440.0,105430.0,0.21218822]
[1748828171937,0.33489586,105440.0,105430.0,0.21218833]
[1748828172145,0.24385586,105440.0,105430.0,0.24064186]
[1748828172356,0.24385586,105440.0,105430.0,0.26345744]
[1748828172975,0.24385586,105440.0,105430.0,0.27234342]
[1748828173828,0.24385586,105440.0,105430.0,0.28182784]
[1748828174390,0.24385586,105440.0,105430.0,0.28182796]